Cogmind - Beta 15 @@@ ROGUE MODE // 2025.07.01 @ 22:49:24 Player: Rudrot Result: Destroyed by GA-82A(R) with Subdweller Laser Performance ------------- Evolutions (0) 0 Regions Visited (2) 400 Robots Destroyed (19) 95 Value Destroyed (472) 472 Prototype IDs (11) 220 Alien Tech Used (0) 0 Bonus (0) 0 TOTAL SCORE: 1187 Bonus ------- None Cogmind --------- Core Integrity 0/250 Matter 247/300 Energy 250/250 System Corruption 1% Temperature Cool (6) Movement Rolling (110) Location -10/Subcaves Parts ------- > --- POWER (1) -------- Ion Engine > --- PROPULSION (2) --- Subdweller Monowheel Subdweller Monowheel > --- UTILITY (2) ------ Medium Storage Unit Visual Processing Unit > --- WEAPON (2) ------- Battle Cannon > --- INVENTORY (10) --- Subdweller Power Source Subdweller Monowheel Subdweller Laser Subdweller Laser Subdweller Machine Gun Subdweller Shrapnel Launcher Subdweller Shrapnel Launcher Peak State ------------ > --- POWER ------------ Ion Engine > --- PROPULSION ------- Subdweller Monowheel Subdweller Monowheel > --- UTILITY ---------- Medium Storage Unit Visual Processing Unit > --- WEAPON ----------- Battle Rifle Barrage Gun > --- INVENTORY -------- Ion Engine Subdweller Power Source Medium Storage Unit Visual Processing Unit Subdweller Laser Subdweller Laser Subdweller Machine Gun Battle Cannon Subdweller Shrapnel Launcher Subdweller Shrapnel Launcher [Rating: 14] Favorites ----------- Power Ion Engine Engine Ion Engine Propulsion Wheel Wheel Wheel Utility Visual Processing Unit Storage Medium Storage Unit Processor Visual Processing Unit Weapon Assault Rifle Energy Gun Medium Laser Ballistic Gun Assault Rifle Ballistic Cannon Battle Cannon Build | -11 -10 -10 ------- Run | Yrd Mat Sub Slots Evolved . | . . . Power . | . . . Propulsion . | . . . Utility . | . . . Weapon . | . . . Parts Attached 24 | 6 7 11 Power 4 | 1 1 2 Engine 4 | 1 1 2 Core . | . . . Reactor . | . . . Propulsion 8 | 2 2 4 Treads . | . . . Leg . | . . . Wheel 8 | 2 2 4 Hover . | . . . Flight . | . . . Utility 3 | 1 2 . Device . | . . . Storage 2 | 1 1 . Processor 1 | . 1 . Hackware . | . . . Protection . | . . . Artifact . | . . . Weapon 9 | 2 2 5 Energy Gun 1 | 1 . . Energy Cannon . | . . . Ballistic Gun 7 | 1 2 4 Ballistic Cannon 1 | . . 1 Launcher . | . . . Special Weapon . | . . . Impact Weapon . | . . . Slashing Weapon . | . . . Piercing Weapon . | . . . Special Melee Weapon . | . . . Unidentified Prototypes . | . . . Parts Lost 8 | . . 8 Power 1 | . . 1 Propulsion 3 | . . 3 Utility . | . . . Weapon 4 | . . 4 Highest Loss Streak 3 | . . 3 To Critical Strikes . | . . . Average Backups 5 | 1 3 6 Power 2 | . 1 2 Propulsion . | . . . Utility 1 | . 1 1 Weapon 1 | . . 2 Tool/Special . | . . . Unused Backups 10 | . 3 7 Power 4 | . 3 1 Propulsion . | . . . Utility 2 | . . 2 Weapon 4 | . . 4 Tool/Special . | . . . Average Slot Usage (%) 95 | . 99 93 Engine 14 | . 14 14 Wheel 24 | . 28 21 Storage 14 | . 14 14 Processor 13 | . 13 14 Energy Gun 1 | . 4 . Ballistic Gun 25 | . 23 27 Peak Build Rating 14 | 6 8 14 Average Rating 9 | 4 7 10 On Entrance 4 | . 6 8 Naked Turns . | . . . Heaviest Build 21 | 12 19 21 Greatest Support 40 | 32 32 40 Greatest Overweight (x) 2 | . 1 2 Average Overweight (x) . | . . . Largest Inventory Capacity 10 | 8 10 10 Average Capacity 9 | 6 9 10 Most Carried 10 | 5 7 10 Average Carried 5 | 1 3 6 Final Capacity 10 | 8 10 10 Final Carried 7 | 1 5 7 Class Distribution -------------------- 100% | Mutant Dominant Class ---------------- Mutant | -10/Materials Mutant | -10/Subcaves Resources | -11 -10 -10 ----------- Run | Yrd Mat Sub Matter Collected 697 | 260 172 265 Remotely . | . . . Salvage Created 548 | . 279 269 Parts 38 | . 23 15 Haulers Intercepted . | . . . Recyclers Shooed . | . . . Parts Field Recycled . | . . . Retrieved Matter . | . . . Parts Self-Destructed 3 | . . 3 Prevented . | . . . Kills | -11 -10 -10 ------- Run | Yrd Mat Sub Combat Hostiles Destroyed 18 | . 12 6 Guns 18 | . 12 6 Classes Destroyed 4 | . 3 1 Watcher 1 | . 1 . Swarmer 8 | . 8 . Grunt 4 | . 4 . Subdweller 6 | . . 6 Best Kill Streak 3 | . 3 2 Combat Bots Only 3 | . 3 2 Max Kills in Single Turn 2 | . 2 1 Gunslinging 1 | . 1 . Exploded . | . . . Melee . | . . . Uniques/NPCs Destroyed . | . . . Combat | -11 -10 -10 -------- Run | Yrd Mat Sub Hostile Shots Fired 114 | . 57 57 Missed 37 | . 22 15 Hits 77 | . 35 42 Projectile 77 | . 35 42 AOE 1 | . . 1 Critical Strikes 2 | . . 2 Damage Taken 1331 | . 330 1001 Core 265 | . 53 212 Absorbed by Shields . | . . . Regen/Repaired (Parts) 85 | . 85 . Core Remaining (%) 100 | 100 . . Volleys Fired 70 | . 31 39 Largest 2 | . 2 2 Hottest 70 | . 70 58 Shots Fired 136 | . 64 72 Gun 133 | . 64 69 Cannon 3 | . . 3 Launcher . | . . . Special . | . . . Kinetic 123 | . 51 72 Thermal 13 | . 13 . Explosive . | . . . Electromagnetic . | . . . Robot Hit Streak 15 | . 8 15 Robot Miss Streak 5 | . 5 2 Penetration Max . | . . . Secondary Targets 4 | . 2 2 Max Gunslinging Chain 1 | . 1 1 Shots Hit Robots 77 | . 34 43 Core Hits 27 | . 15 12 Critical Kills 2 | . 1 1 Critical Parts Destroyed 1 | . 1 . Critical Strikes 3 | . 2 1 Destroy 3 | . 2 1 Melee Attacks . | . . . Impact . | . . . Slashing . | . . . Piercing . | . . . Sneak Attacks . | . . . Combat Hostiles . | . . . Follow-up Attacks . | . . . Damage Inflicted 967 | . 418 549 Guns 936 | . 418 518 Cannons 31 | . . 31 Explosions . | . . . Melee . | . . . Ramming . | . . . Kinetic 879 | . 330 549 Thermal 88 | . 88 . Explosive . | . . . Electromagnetic . | . . . Impact . | . . . Slashing . | . . . Piercing . | . . . Highest Corruption 1 | . 1 1 Average Corruption 1 | . 1 1 Corruption Purged . | . . . Corruption Blocked . | . . . Effects 14 | . 4 10 Message Errors 4 | . 1 3 Heat Flow Errors 3 | . 1 2 Energy Discharges 2 | . . 2 Data Loss (minor) 1 | . . 1 Misfires 4 | . 2 2 Overload Shots . | . . . Overflow Damage . | . . . Projectiles . | . . . Explosions . | . . . Melee . | . . . Knockbacks 1 | . . 1 Impact . | . . . Kinetic 1 | . . 1 Secondary . | . . . Self-Inflicted Damage . | . . . Shots . | . . . Rammed . | . . . Targets Rammed . | . . . Kicked . | . . . Crushed . | . . . Highest Temperature 234 | . 234 208 Average Temperature 48 | . 41 96 Received Heat Transfer 330 | . 120 210 Siege Activations . | . . . Martial Activations . | . . . Shielding Activations . | . . . Robots Disrupted . | . . . Combat Hostiles . | . . . Robots Corrupted . | . . . Combat Hostiles . | . . . Parts Fried . | . . . Impact Corruptions . | . . . Robots Melted . | . . . Combat Hostiles . | . . . Parts Melted . | . . . Heat Transferred 259 | . 259 . Parts Sabotaged . | . . . Parts Stolen . | . . . Parts Stripped . | . . . Power Chain Reactions . | . . . Alert | -11 -10 -10 ------- Run | Yrd Mat Sub Maximum Alert Level . | . . . Low Security (%) 100 | 100 100 . Level 1 . | . . . Level 2 . | . . . Level 3 . | . . . Level 4 . | . . . Level 5 . | . . . High Security . | . . . Max Security . | . . . Peak Influence 80 | . 80 . Initial . | . . . Average 20 | . 21 . Influence Increases 322 | . 322 . Destroy 0b10 Robot/C 240 | . 240 . Destroy 0b10 Robot/NC 5 | . 5 . Destroy Leader 42 | . 42 . Successful Hack 5 | . 5 . Lose Combat Pursuer 30 | . 30 . Influence Decreases 322 | . 322 . Time Decay 322 | . 322 . Squads Dispatched 3 | . 3 . Investigation 1 | . 1 . Extermination . | . . . Reinforcement 2 | . 2 . Assault . | . . . Garrison . | . . . Intercept . | . . . Searches Triggered . | . . . Construction Impeded . | . . . Haulers Reinforced . | . . . Active Scanning Responses . | . . . Cargo Convoy Interrupts . | . . . Stealth | -11 -10 -10 --------- Run | Yrd Mat Sub Distress Signals . | . . . Communications Jammed . | . . . Distress Signals . | . . . Times Spotted 34 | . 23 11 Peak Tracking Total 4 | . 4 3 Tactical Retreats 2 | . 1 1 Traps | -11 -10 -10 ------- Run | Yrd Mat Sub Traps Triggered 1 | . 1 . Indirectly . | . . . Trap Hack Attempts . | . . . Triggered . | . . . Disarmed . | . . . Reprogrammed . | . . . Reused . | . . . Traps Extracted . | . . . Installed . | . . . Triggered . | . . . Machines | -11 -10 -10 ---------- Run | Yrd Mat Sub Machines Disabled . | . . . Max in Single Turn . | . . . Machines Repaired . | . . . Machines Dismantled . | . . . Machines Sabotaged . | . . . Overloaded Fab Kills . | . . . Hacking | -11 -10 -10 --------- Run | Yrd Mat Sub Machines Accessed 5 | . 4 1 Terminals 2 | . 2 . Fabricators . | . . . Repair Stations 1 | . 1 . Recycling Units 1 | . 1 . Scanalyzers . | . . . Garrison Access . | . . . Total Hacks 13 | . 12 1 Successful 6 | . 5 1 Failed 7 | . 7 . Catastrophic 1 | . 1 . Database Lockouts . | . . . Manual . | . . . Terminals 4 | . 4 . Fabricators . | . . . Repair Stations 5 | . 5 . Recycling Units 3 | . 3 . Scanalyzers . | . . . Garrison Access . | . . . Terminal Hacks 2 | . 1 1 Hauler Manifests 1 | . 1 . Proto ID Catalog 1 | . . 1 Fabricator Hacks . | . . . Repair Station Hacks 2 | . 2 . Scan Component 1 | . 1 . Repair 1 | . 1 . Recycling Unit Hacks 2 | . 2 . Retrieve Matter 1 | . 1 . Retrieve Components 1 | . 1 . Scanalyzer . | . . . Garrison Access Hacks . | . . . Unauthorized Hacks . | . . . Terminals . | . . . Fabricators . | . . . Repair Stations . | . . . Recycling Units . | . . . Scanalyzers . | . . . Garrison Access . | . . . Data Cores Recovered . | . . . Used . | . . . Hacking Detections 4 | . 4 . Full Trace Events 1 | . 1 . Feedback Events . | . . . Feedback Blocked . | . . . Robot Schematics Acquired . | . . . Robots Built . | . . . Authchips . | . . . Time . | . . . Total Robot Build Rating . | . . . Part Schematics Acquired . | . . . Parts Built . | . . . Authchips . | . . . Time . | . . . Total Part Build Rating . | . . . Parts Repaired 1 | . 1 . Time 26 | . 26 . Parts Recycled . | . . . Recycled Matter . | . . . Retrieved Matter 146 | . 146 . Retrieved Components 10 | . 10 . Parts Scanalyzed . | . . . Part Schematics Acquired . | . . . Parts Damaged . | . . . Bothacking | -11 -10 -10 ------------ Run | Yrd Mat Sub Used RIF Installer . | . . . Robots Hacked . | . . . Non-combat . | . . . Combat . | . . . Robot Hacks Applied . | . . . Relay Couplers Released . | . . . Fabnet Peak Effective % . | . . . Robots Rewired . | . . . Allies Hacked . | . . . Hacks Repelled . | . . . Allies | -11 -10 -10 -------- Run | Yrd Mat Sub Total Allies . | . . . Largest Group . | . . . Highest-Rated Group . | . . . Highest-Rated Ally . | . . . Total Orders . | . . . Ally Attacks . | . . . Total Damage . | . . . Kills . | . . . Allies Corrupted . | . . . Allies Melted . | . . . Intel | -11 -10 -10 ------- Run | Yrd Mat Sub Active Infowar (turns) 2262 | . 958 1304 Optics 2262 | . 958 1304 Robot Analysis Total . | . . . Derelict Logs Recovered 2 | . . 2 Drone Launches . | . . . Drone Recoveries . | . . . Exploration | -11 -10 -10 ------------- Run | Yrd Mat Sub Turns Passed 2318 | 51 963 1304 Spaces Moved 2013 | 46 768 1199 Core 13 | 13 . . Treads . | . . . Legs . | . . . Wheels 2000 | 33 768 1199 Hover . | . . . Flight . | . . . Fastest Speed 50 | 50 80 80 Average Speed 93 | 85 93 93 Slowest Speed 110 | 100 100 110 Overloaded Moves . | . . . Propulsion Burnouts . | . . . Robots Hopped . | . . . Potential Cave-ins . | . . . Cave-ins Triggered . | . . . Exploration Rate (%) 47 | 3 91 48 Regions Visited 2 Branch Regions 1 Pre-discovered Areas 1 | . . 1 Known Exits Taken . | . . . Unknown Exits Taken 2 | 1 1 . Scrap Searched 4 | . . 4 Spaces Dug . | . . . Terrain Destroyed . | . . . Melee . | . . . Projectile . | . . . AOE . | . . . Terrain Rammed . | . . . Walls Destroyed . | . . . Machines Disabled . | . . . Actions | -11 -10 -10 --------- Run | Yrd Mat Sub Total 2322 | 57 952 1313 Wait 168 | . 123 45 Move 2011 | 45 767 1199 Hop . | . . . Pick Up 25 | 6 8 11 Fast Attach 10 | 1 7 2 Attach 15 | 5 1 9 Detach 9 | . 6 3 Swap . | . . . Drop 13 | . 9 4 Fire 70 | . 31 39 Melee . | . . . Ram . | . . . Kick . | . . . Crush . | . . . Escape Stasis . | . . . Rewire 1 | . . 1 Trap . | . . . Miscellaneous . | . . . Route ------- -11/Scrapyard -10/Materials (discovered 5 exits: [*Mat x3] / [*Min] / *Sub) -10/Subcaves (discovered 1 exit: [*Mat]) History --------- Turn | Location | Event 9 | -11/Scrapyard | Discovered new exit (range 15) 52 | -11/Scrapyard | Entered Materials 318 | -10/Materials | Build established: Mutant 456 | -10/Materials | Discovered new exit (range 17) 591 | -10/Materials | Discovered new exit (range 18) 758 | -10/Materials | Discovered new exit (range 10) 887 | -10/Materials | Discovered new exit (range 8) 921 | -10/Materials | Repaired Assault Rifle 997 | -10/Materials | Discovered new exit (range 6) 1015 | -10/Materials | Entered Subcaves 1050 | -10/Subcaves | Discovered new exit (range 13) 1101 | -10/Subcaves | Shifting Twisted Machinery released Barrage Gun 1102 | -10/Subcaves | Shifting Twisted Machinery released Sub. Machine Gun 1124 | -10/Subcaves | Learned Materials security intel 1153 | -10/Subcaves | A swath of the cavern ceiling suddenly collapsed 1423 | -10/Subcaves | Core integrity fell below 50% 1463 | -10/Subcaves | Lost 3 parts (1n2w) 1498 | -10/Subcaves | Learned Materials terminal intel 1684 | -10/Subcaves | Visited 4L-MR0's lab 1835 | -10/Subcaves | Learned location of Zion (-7) 1835 | -10/Subcaves | Met a Zionite searching for "candidates" 2060 | -10/Subcaves | Core integrity fell below 20% 2319 | -10/Subcaves | Destroyed by GA-82A(R) with Subdweller Laser Last Messages --------------- 02083_ Dropped Med. Storage Unit. 02084_ Acquired Sub. Monowheel. 02088_ Dropped Visual Processing Unit. 02088_ Acquired Sub. Monowheel. 02093_ V%UV OGXH#Y=W58ETKNZ ==WF1ROGQV% 02150_ Acquired 7 matter. 02151_ Subatomizers dissect the Sub. Beam Cannon. 02181_ System corrupted: FCS attempts to trigger Battle Rifle. 02181_ System corrupted: Battle Rifle misfires. 02193_ Ion Engine destroyed. 02198_ Sub. Monowheel destroyed. 02200_ System corrupted: Heat flow error (+114). 02269_ Sub. Monowheel shoots sparks and powers down. 02294_ Acquired 7 matter. 02310_ Barrage Gun destroyed. 02314_ Battle Rifle destroyed. 02316_ GA-0IA(R) knocked back. Map ----- +----------------------------------------------------+ | ?????????????????????????????????????????????????? | | ?????????????????????????????????????????????????? | | ?????????????????????????????????????????????????? | | ?????????????????????????????????????????????????? | | ?????????????????????????????????????????????????? | | ?????????????????????????????????????????????????? | | ?????????????????????????????????????????????????? | | ?????????????????????????????????????????????????? | | ?????????????????????????????????????????????????? | | ?????????????????????????????????????????????????? | | ???####?????????????????###??????###?????????????? | | #### ######???????????## ##????## #???????????#?? | | ##??####????# #???## #??????????? ## | | #### #????# ##??# ##??????????? | | ##????# ##?# ###????????? | | # ## # #????# ### ##????????? | | #### ### ### #####?## ### #????????? | | ???## #?## ## & # #### ##### ##????????# | | ????####??## ! | # ### ##??###??# | | ???????????# &R #### ### | | ???????????#######; ## | | ?????????????????## ## ## | | ?????????????????## "# ###### ##?# | | ????????????????## ### #????# ###### | | ????????????????# ## ####### ##?# ## | | ????????????????##### @ R""#?## #### #? | | ????????????????????## """""#?### #? | | ?????????????????????##;## % """""????## ##? | | ??????????????????????#### ##"""""????## ##?? | | ????????????????????????? #?"""#"????# ##??? | | ????????????????????????? #?# #????# ##???? | | ???????????????????????? #???? #????#" #????? | | ???????????????????????? ??????#????#"" #????? | | ??????????????????????????????????????#" #????? | | ??????????????????????????????????????#######????? | | ?????????????????????????????????????????????????? | | ?????????????????????????????????????????????????? | | ?????????????????????????????????????????????????? | | ?????????????????????????????????????????????????? | | ?????????????????????????????????????????????????? | | ?????????????????????????????????????????????????? | | ?????????????????????????????????????????????????? | | ?????????????????????????????????????????????????? | | ?????????????????????????????????????????????????? | | ?????????????????????????????????????????????????? | | ?????????????????????????????????????????????????? | | ?????????????????????????????????????????????????? | | ?????????????????????????????????????????????????? | | ?????????????????????????????????????????????????? | | ?????????????????????????????????????????????????? | +----------------------------------------------------+ Best States ------------- Heat Dissipation 25 Energy Generation 10 Energy Capacity 250 Matter Stores 300 Matter Capacity 300 Sight Range 18 Terrain Scan Density 10 Evasion (%) 50 Item Schematics ----------------- None Robot Schematics ------------------ None Fabricated ------------ Nothing Repaired ---------- Assault Rifle | 15% | -10/Materials Alien Tech Used ----------------- None Achievements -------------- None Challenges ------------ None Game ------ Seed ChargeSuperchargedLattice Manual? 0 Play Time 00:23:33 Cumulative 25.1 hours Start 2025.07.01 @ 22:19:34 End 2025.07.01 @ 22:49:24 Sessions 1 Manual Loads 0 Difficulty Rogue Special Mode None Game No. 19 Rogue 19 Adventurer 0 Explorer 0 Win Type - Total 0 Types 0/0/0/0/0/0/0/0/0/0 Lore% 15 Gallery% 12 Achievement% 16 Wizard Run 0 Options --------- Layout 1 ASCII 0 Keyboard 1 Movement Numpad Keybinds 0 Fullscreen 2 Font 24/Cog Map View 50x35 Zoom Use 0% Tactical HUD 1 Map Filters NONE Filters NONE Steam 1 RUN: e2111925-0a72-4335-ab97-d132386971fa